Cogmind - Beta 16 @@@ ROGUE MODE // 2025.12.14 @ 10:09:47 Player: Derk Result: Destroyed by as-49983 with Assembled Blade Performance ------------- Evolutions (0) 0 Regions Visited (4) 800 Robots Destroyed (28) 140 Value Destroyed (619) 619 Prototype IDs (2) 40 Alien Tech Used (0) 0 Bonus (0) 0 TOTAL SCORE: 1599 Bonus ------- None Cogmind --------- Core Integrity 0/250 Matter 287/300 Energy 238/265 System Corruption 0% Temperature Cool (0) Movement Treading (240) Ox1 Location -9/Mines Parts ------- > --- POWER (1) -------- Improved Ion Engine > --- PROPULSION (2) --- Light Treads Light Treads > --- UTILITY (2) ------ Heat Sink High-capacity Storage Unit > --- WEAPON (2) ------- Improved Light Cannon > --- INVENTORY (20) --- Nuclear Core Reinforced Deuterium Engine Fission Core Light Treads Wheel Improved Heat Sink High-capacity Matter Pod (200) Improved Terrain Scanner Seismic Detector Targeting Computer Light Armor Plating Light Armor Plating Beam Rifle Beam Cannon Light Assault Rifle Heavy Assault Rifle Shotgun Peak State ------------ > --- POWER ------------ Improved Ion Engine > --- PROPULSION ------- Light Treads Light Treads > --- UTILITY ---------- Heat Sink High-capacity Storage Unit > --- WEAPON ----------- EM Shotgun EM Shotgun > --- INVENTORY -------- Nuclear Core Reinforced Deuterium Engine Light Treads Wheel Improved Heat Sink High-capacity Matter Pod Improved Terrain Scanner Seismic Detector Targeting Computer Light Armor Plating Light Armor Plating Beam Rifle Beam Cannon Light Assault Rifle Heavy Assault Rifle Shotgun Improved Light Cannon [Rating: 13] Favorites ----------- Power Ion Engine Engine Ion Engine Propulsion Light Treads Treads Light Treads Wheel Compact Wheel Utility High-capacity Storage Unit Device Heat Sink Storage High-capacity Storage Unit Protection Light Armor Plating Weapon EM Shotgun Energy Gun EM Shotgun Energy Cannon Particle Cannon Ballistic Gun Light Assault Rifle Ballistic Cannon Improved Light Cannon Build | -11 -10 -10 -10 -9 ------- Run | Yrd Mat Min Exi Min Slots Evolved . | . . . . . Power . | . . . . . Propulsion . | . . . . . Utility . | . . . . . Weapon . | . . . . . Parts Attached 26 | 7 11 7 . 1 Power 4 | 1 2 1 . . Engine 4 | 1 2 1 . . Core . | . . . . . Reactor . | . . . . . Propulsion 5 | 2 3 . . . Treads 4 | 2 2 . . . Leg . | . . . . . Wheel 1 | . 1 . . . Hover . | . . . . . Flight . | . . . . . Utility 7 | 2 3 2 . . Device 3 | 1 1 1 . . Storage 3 | 1 2 . . . Processor . | . . . . . Hackware . | . . . . . Protection 1 | . . 1 . . Artifact . | . . . . . Weapon 10 | 2 3 4 . 1 Energy Gun 4 | . . 4 . . Energy Cannon 1 | . 1 . . . Ballistic Gun 4 | 2 2 . . . Ballistic Cannon 1 | . . . . 1 Launcher . | . . . . . Special Weapon . | . . . . . Impact Weapon . | . . . . . Slashing Weapon . | . . . . . Piercing Weapon . | . . . . . Special Melee Weapon . | . . . . . Unidentified Prototypes . | . . . . . Parts Lost 9 | . 5 2 . 2 Power 1 | . 1 . . . Propulsion 2 | . 2 . . . Utility . | . . . . . Weapon 6 | . 2 2 . 2 Highest Loss Streak 4 | . 4 2 . 2 To Critical Strikes . | . . . . . Average Backups 14 | 3 12 19 17 17 Power . | . . . 2 3 Propulsion 2 | 1 2 2 2 2 Utility 5 | . 3 7 7 7 Weapon 6 | . 5 9 6 5 Tool/Special . | . . . . . Unused Backups 20 | . . 2 3 15 Power 3 | . . . . 3 Propulsion 3 | . . 1 . 2 Utility 8 | . . 1 1 6 Weapon 6 | . . . 2 4 Tool/Special . | . . . . . Average Slot Usage (%) 99 | . 99 99 100 100 Engine 13 | . 13 14 14 14 Treads 27 | . 27 28 28 28 Device 13 | . 14 13 14 14 Storage 14 | . 14 14 14 14 Energy Gun 13 | . . 24 28 23 Energy Cannon 1 | . 2 1 . . Ballistic Gun 12 | . 25 1 . . Peak Build Rating 13 | 7 11 12 13 13 Average Rating 10 | 5 8 11 12 12 On Entrance 8 | . 7 11 12 13 Avg Prop Armor Cover (%) . | . . . . . Naked Turns . | . . . . . Heaviest Build 54 | 13 53 54 54 54 Greatest Support 40 | 40 40 40 40 40 Greatest Overweight (x) 2 | . 2 1 1 1 Average Overweight (x) . | . . 1 1 1 Largest Inventory Capacity 20 | 8 20 20 20 20 Average Capacity 17 | 7 17 20 20 20 Most Carried 20 | 4 19 20 19 18 Average Carried 14 | 3 12 19 17 17 Final Capacity 20 | 8 20 20 20 20 Final Carried 19 | 4 18 19 18 17 Class Distribution -------------------- 50% | Mutant 49% | Scavenger-Mutant Dominant Class ---------------- Mutant | -10/Materials Scavenger-Mutant | -10/Mines Scavenger-Mutant | -10/Exiles Scavenger-Mutant | -9/Mines Resources | -11 -10 -10 -10 -9 ----------- Run | Yrd Mat Min Exi Min Matter Collected 871 | 318 283 270 . . Remotely . | . . . . . Salvage Created 967 | 159 586 222 . . Parts 55 | 9 32 14 . . Haulers Intercepted 1 | . 1 . . . Recyclers Shooed 2 | . 2 . . . Parts Field Recycled . | . . . . . Retrieved Matter . | . . . . . Parts Self-Destructed . | . . . . . Prevented . | . . . . . Parts Restored . | . . . . . Kills | -11 -10 -10 -10 -9 ------- Run | Yrd Mat Min Exi Min Combat Hostiles Destroyed 19 | . 15 4 . . Guns 18 | . 14 4 . . Cannons 1 | . 1 . . . Classes Destroyed 8 | 2 5 1 . . Worker 1 | . 1 . . . Tunneler 4 | 4 . . . . Hauler 1 | . 1 . . . Recycler 2 | 1 1 . . . Operator 1 | . 1 . . . Swarmer 6 | . 6 . . . Grunt 11 | . 9 2 . . Sentry 2 | . . 2 . . Best Kill Streak 5 | 2 5 2 . . Combat Bots Only 3 | . 3 2 . . Max Kills in Single Turn 2 | 1 2 1 . . Gunslinging . | . . . . . Exploded . | . . . . . Melee . | . . . . . Uniques/NPCs Destroyed . | . . . . . Combat | -11 -10 -10 -10 -9 -------- Run | Yrd Mat Min Exi Min Hostile Shots Fired 142 | . 105 27 . 10 Missed 33 | . 25 6 . 2 Hits 109 | . 80 21 . 8 Melee 1 | . . . . 1 Projectile 108 | . 80 21 . 7 AOE 6 | . . . . 6 Critical Strikes 1 | . . 1 . . Damage Taken 1371 | . 801 298 . 272 Core 276 | . 156 23 . 97 Absorbed by Shields . | . . . . . Core Remaining (%) 100 | 100 . . . . Volleys Fired 108 | 24 70 11 . 3 Largest 2 | 2 2 2 . 2 Hottest 91 | 40 91 90 . 90 Shots Fired 212 | 48 139 19 . 6 Gun 185 | 48 114 19 . 4 Cannon 27 | . 25 . . 2 Launcher . | . . . . . Special . | . . . . . Kinetic 164 | 48 114 . . 2 Thermal 25 | . 25 . . . Explosive . | . . . . . Electromagnetic 23 | . . 19 . 4 Robot Hit Streak 10 | 7 10 3 . 9 Robot Miss Streak 6 | 2 6 2 . 1 Penetration Max . | . . . . . Secondary Targets 1 | . . 1 . . Max Gunslinging Chain 1 | . . 1 . . Shots Hit Robots 148 | 34 91 17 . 6 Core Hits 64 | 13 39 9 . 3 Critical Kills 1 | . 1 . . . Critical Parts Destroyed 1 | . 1 . . . Critical Strikes 2 | . 2 . . . Destroy 2 | . 2 . . . Melee Attacks . | . . . . . Impact . | . . . . . Slashing . | . . . . . Piercing . | . . . . . Sneak Attacks . | . . . . . Combat Hostiles . | . . . . . Follow-up Attacks . | . . . . . Damage Inflicted 1597 | 276 1030 193 . 98 Guns 1240 | 276 715 193 . 56 Cannons 352 | . 310 . . 42 Explosions . | . . . . . Melee . | . . . . . Ramming 5 | . 5 . . . Kinetic 1033 | 276 715 . . 42 Thermal 310 | . 310 . . . Explosive . | . . . . . Electromagnetic 249 | . . 193 . 56 Impact . | . . . . . Slashing . | . . . . . Piercing . | . . . . . Highest Corruption . | . . . . . Average Corruption . | . . . . . Corruption Purged . | . . . . . Corruption Blocked . | . . . . . Overload Shots . | . . . . . Overflow Damage . | . . . . . Projectiles . | . . . . . Explosions . | . . . . . Melee . | . . . . . Knockbacks 1 | . . . . 1 Impact . | . . . . . Kinetic 1 | . . . . 1 Secondary . | . . . . . Self-Inflicted Damage . | . . . . . Shots . | . . . . . Rammed 1 | . 1 . . . Targets Rammed 1 | . 1 . . . Kicked . | . . . . . Crushed . | . . . . . Highest Temperature 270 | . 192 270 . 3 Average Temperature 95 | . 92 108 . 2 Received Heat Transfer 441 | . 312 129 . . Siege Activations . | . . . . . Martial Activations . | . . . . . Shielding Activations . | . . . . . Robots Disrupted . | . . . . . Combat Hostiles . | . . . . . Robots Corrupted . | . . . . . Combat Hostiles . | . . . . . Parts Fried 1 | . . 1 . . Impact Corruptions . | . . . . . Robots Melted . | . . . . . Combat Hostiles . | . . . . . Parts Melted 1 | . 1 . . . Heat Transferred 555 | . 555 . . . Parts Sabotaged . | . . . . . Parts Stolen . | . . . . . Parts Stripped . | . . . . . Power Chain Reactions . | . . . . . Alert | -11 -10 -10 -10 -9 ------- Run | Yrd Mat Min Exi Min Maximum Alert Level . | . . . . . Low Security (%) 100 | 100 100 100 . 100 Level 1 . | . . . . . Level 2 . | . . . . . Level 3 . | . . . . . Level 4 . | . . . . . Level 5 . | . . . . . High Security . | . . . . . Max Security . | . . . . . Peak Influence 93 | 10 93 32 . . Initial 22 | . . 22 . . Average 18 | . 27 4 . . Influence Increases 602 | 25 487 90 . . Destroy 0b10 Robot/C 380 | . 300 80 . . Destroy 0b10 Robot/NC 45 | 25 20 . . . Destroy Leader 62 | . 52 10 . . Successful Hack 40 | . 40 . . . Disable Machine 15 | . 15 . . . Lose Combat Pursuer 60 | . 60 . . . Influence Decreases 602 | 25 429 148 . . Entered New Map 36 | . . 36 . . Time Decay 506 | 25 379 102 . . Lost Part 60 | . 50 10 . . Squads Dispatched 3 | . 3 . . . Investigation 1 | . 1 . . . Extermination . | . . . . . Reinforcement 2 | . 2 . . . Assault . | . . . . . Garrison . | . . . . . Intercept . | . . . . . Searches Triggered . | . . . . . Construction Impeded . | . . . . . Haulers Reinforced . | . . . . . Active Scanning Responses . | . . . . . Cargo Convoy Interrupts . | . . . . . Stealth | -11 -10 -10 -10 -9 --------- Run | Yrd Mat Min Exi Min Distress Signals 2 | . 2 . . . Communications Jammed . | . . . . . Distress Signals . | . . . . . Times Spotted 40 | . 27 4 . 9 Peak Tracking Total 15 | . 4 2 . 15 Tactical Retreats 3 | . 3 . . . Traps | -11 -10 -10 -10 -9 ------- Run | Yrd Mat Min Exi Min Traps Triggered 1 | . 1 . . . Indirectly . | . . . . . Trap Hack Attempts . | . . . . . Triggered . | . . . . . Disarmed . | . . . . . Reprogrammed . | . . . . . Reused . | . . . . . Traps Extracted . | . . . . . Installed . | . . . . . Triggered . | . . . . . Machines | -11 -10 -10 -10 -9 ---------- Run | Yrd Mat Min Exi Min Machines Disabled 1 | . 1 . . . Max in Single Turn 1 | . 1 . . . Machines Repaired . | . . . . . Machines Dismantled . | . . . . . Machines Sabotaged . | . . . . . Overloaded Fab Kills . | . . . . . Hacking | -11 -10 -10 -10 -9 --------- Run | Yrd Mat Min Exi Min Machines Accessed 9 | . 7 . 2 . Terminals 7 | . 7 . . . Fabricators . | . . . . . Repair Stations . | . . . . . Recycling Units . | . . . . . Scanalyzers . | . . . . . Garrison Access . | . . . . . Total Hacks 20 | . 18 . 2 . Successful 13 | . 11 . 2 . Failed 7 | . 7 . . . Catastrophic 1 | . 1 . . . Database Lockouts . | . . . . . Manual 2 | . 2 . . . Terminals 18 | . 18 . . . Fabricators . | . . . . . Repair Stations . | . . . . . Recycling Units . | . . . . . Scanalyzers . | . . . . . Garrison Access . | . . . . . Terminal Hacks 12 | . 10 . 2 . Record 2 | . . . 2 . Robot Analysis 2 | . 2 . . . Prototype ID Bank 1 | . 1 . . . Branch Access Points 1 | . 1 . . . Emergency Access Points 2 | . 2 . . . Locate Traps 2 | . 2 . . . Hauler Manifests 1 | . 1 . . . Registered Prototypes 1 | . 1 . . . Fabricator Hacks . | . . . . . Repair Station Hacks . | . . . . . Recycling Unit Hacks . | . . . . . Scanalyzer . | . . . . . Garrison Access Hacks . | . . . . . Unauthorized Hacks 1 | . 1 . . . Terminals 1 | . 1 . . . Botnet 1 | . 1 . . . Fabricators . | . . . . . Repair Stations . | . . . . . Recycling Units . | . . . . . Scanalyzers . | . . . . . Garrison Access . | . . . . . Data Cores Recovered . | . . . . . Used . | . . . . . Hacking Detections 6 | . 6 . . . Full Trace Events . | . . . . . Feedback Events . | . . . . . Feedback Blocked . | . . . . . Robot Schematics Acquired . | . . . . . Robots Built . | . . . . . Authchips . | . . . . . Time . | . . . . . Total Robot Build Rating . | . . . . . Part Schematics Acquired . | . . . . . Parts Built . | . . . . . Authchips . | . . . . . Time . | . . . . . Total Part Build Rating . | . . . . . Part Studies Acquired . | . . . . . Parts Repaired . | . . . . . Time . | . . . . . Parts Recycled . | . . . . . Recycled Matter . | . . . . . Retrieved Matter . | . . . . . Retrieved Components . | . . . . . Parts Scanalyzed . | . . . . . Part Schematics Acquired . | . . . . . Parts Damaged . | . . . . . Bothacking | -11 -10 -10 -10 -9 ------------ Run | Yrd Mat Min Exi Min Used RIF Installer . | . . . . . Robots Hacked . | . . . . . Non-combat . | . . . . . Combat . | . . . . . Robot Hacks Applied . | . . . . . Relay Couplers Released . | . . . . . Fabnet Peak Effective % . | . . . . . Robots Rewired . | . . . . . Allies Hacked . | . . . . . Hacks Repelled . | . . . . . Allies | -11 -10 -10 -10 -9 -------- Run | Yrd Mat Min Exi Min Total Allies 1 | . . 1 . . Largest Group 1 | . . 1 . . Highest-Rated Group 31 | . . 31 . . Highest-Rated Ally 31 | . . 31 . . Total Orders . | . . . . . Ally Attacks 4 | . . 4 . . Total Damage 81 | . . 81 . . Kills . | . . . . . Allies Corrupted . | . . . . . Allies Melted . | . . . . . Intel | -11 -10 -10 -10 -9 ------- Run | Yrd Mat Min Exi Min Active Infowar (turns) 1445 | 53 1392 . . . Seismic 1445 | 53 1392 . . . Robot Analysis Total 2 | . 2 . . . Derelict Logs Recovered 1 | . . 1 . . Drone Launches . | . . . . . Drone Recoveries . | . . . . . Exploration | -11 -10 -10 -10 -9 ------------- Run | Yrd Mat Min Exi Min Turns Passed 3852 | 267 1766 824 980 15 Spaces Moved 1601 | 121 747 323 407 3 Core 2 | 2 . . . . Treads 1596 | 119 744 323 407 3 Legs . | . . . . . Wheels 3 | . 3 . . . Hover . | . . . . . Flight . | . . . . . Fastest Speed 50 | 50 130 240 240 240 Average Speed 214 | 158 199 240 240 240 Slowest Speed 320 | 160 320 240 240 240 Overloaded Moves . | . . . . . Propulsion Burnouts . | . . . . . Robots Hopped . | . . . . . Potential Cave-ins . | . . . . . Cave-ins Triggered . | . . . . . Exploration Rate (%) 50 | 6 97 52 90 9 Regions Visited 4 Branch Regions 3 Pre-discovered Areas . | . . . . . Known Exits Taken 1 | . 1 . . . Unknown Exits Taken 3 | 1 . 1 1 . Scrap Searched 3 | . . 3 . . Spaces Dug . | . . . . . Terrain Destroyed . | . . . . . Melee . | . . . . . Projectile . | . . . . . AOE . | . . . . . Terrain Rammed . | . . . . . Walls Destroyed . | . . . . . Machines Disabled . | . . . . . Actions | -11 -10 -10 -10 -9 --------- Run | Yrd Mat Min Exi Min Total 1838 | 155 904 359 413 7 Wait 60 | . 59 1 . . Move 1597 | 120 746 322 406 3 Hop . | . . . . . Pick Up 30 | 4 14 9 3 . Fast Attach 10 | 7 3 . . . Attach 6 | . 3 2 . 1 Detach 1 | . 1 . . . Swap 11 | . 5 6 . . Drop 14 | . 2 8 4 . Fire 108 | 24 70 11 . 3 Melee . | . . . . . Ram . | . . . . . Kick . | . . . . . Crush 1 | . 1 . . . Escape Stasis . | . . . . . Rewire . | . . . . . Trap . | . . . . . Miscellaneous . | . . . . . Route ------- -11/Scrapyard -10/Materials (discovered 5 exits: [*Mat x3] / *Min x2) -10/Mines (discovered 2 exits: [*Mat] / *Exi) -10/Exiles -9/Mines History --------- Turn | Location | Event 66 | -11/Scrapyard | Discovered new exit (range 16) 268 | -11/Scrapyard | Entered Materials 307 | -10/Materials | Build established: Mutant 703 | -10/Materials | Discovered new exit (range 15) 934 | -10/Materials | Discovered new exit (range 13) 1208 | -10/Materials | Discovered new exit (range 12) 1354 | -10/Materials | Discovered new exit (range 3) 1381 | -10/Materials | Identified exit to Mines 1695 | -10/Materials | Core integrity fell below 50% 1749 | -10/Materials | Lost 4 parts (1p2n1w) 2034 | -10/Materials | Entered Mines 2347 | -10/Mines | Received a Mining Laser from a helpful Derelict 2456 | -10/Mines | Build established: Scavenger-Mutant 2723 | -10/Mines | Learned Materials terminal intel 2762 | -10/Mines | Discovered new exit (range 11) 2848 | -10/Mines | Deemed a non-threat by the Exiles lab entrance 2848 | -10/Mines | Discovered new exit (range 5) 2858 | -10/Mines | Entered Exiles 2858 | -10/Exiles | Found Exiles lab abandoned 3816 | -10/Exiles | Discovered new exit (range 10) 3838 | -10/Exiles | Entered Mines 3839 | -9/Mines | Assembled infested the area 3848 | -9/Mines | Core integrity fell below 20% 3853 | -9/Mines | Destroyed by as-49983 with Assembled Blade Last Messages --------------- 03839_ ALERT: Infestation in the mines, dispatching Demolisher response squad. 03843_ K-01 Serf collects debris. 03846_ C-45 Heavy ARC bursts open, deploying its payload. 03846_ D-53 Grenadier unfolds itself. 03846_ K-01 Serf destroyed. 03846_ K-01 Serf collects debris. 03847_ EM Shotgun destroyed. 03847_ D-53 Grenadier destroyed. 03850_ D-53 Grenadier knocked back. 03850_ K-01 Serf collects debris. 03851_ The unstable cave ceiling collapses. 03851_ U-05 Engineer lays Concrete. 03851_ U-05 Engineer destroyed. 03852_ U-05 Engineer lays Concrete. 03853_ The unstable cave ceiling collapses. 03853_ U-05 Engineer builds a Wall. 03853_ EM Shotgun destroyed. 03853_ as-22364 destroyed. 03853_ K-01 Serf collects debris. Map ----- +----------------------------------------------------+ | ?????????????????????????????????????????? | | ?????????????????????????????????????????? | | ?????????????????????????????????????????? | | ?????????????????????????????????????????? | | ?????????????????????????????????????????? | | ?????????????????????????????????????????? | | ?????????????????????????????????????????? | | ?????????????????????????????????????????? | | ?????????????????????????????????????????? | | ?????????????????????????????????????????? | | ?????????????????????????????????????????? | | ?????????????????????????????????????????? | | ?????????????????????????????????????????? | | ??????????????????????????#??????????????? | | ????????????????????????? #??????????????? | | ???????????##??????????? #??????????????? | | ???????????? ?????????## #??????????????? | | ???????????? ???????# t #??????????????? | | ????????????? ??????? #??????????????? | | ?????????????# ?????# ##?????????????? | | ?????????????# ##### ##????????????? | | ??? ????????# # ?????????????? | | ??? ???## =k r???????????????? | | ??# # * u#?????????????????? | | ??# %! #??????????????????? | | ??# a a@d #??????????????????? | | ??# a #??????????????????? | | ??# aa a # #??????????????????? | | ??? ???## #??????????????????? | | ??? ????????## #??????????????????? | | ??????????????## #??????????????????? | | ???????????????# #??????????????????? | | ???????????????# #??????????????????? | | ???????????????########??????????????????? | | ?????????????????????????????????????????? | | ?????????????????????????????????????????? | | ?????????????????????????????????????????? | | ?????????????????????????????????????????? | | ?????????????????????????????????????????? | | ?????????????????????????????????????????? | | ?????????????????????????????????????????? | | ?????????????????????????????????????????? | | ?????????????????????????????????????????? | | ?????????????????????????????????????????? | | ?????????????????????????????????????????? | | ?????????????????????????????????????????? | | ?????????????????????????????????????????? | | ?????????????????????????????????????????? | | ?????????????????????????????????????????? | | ?????????????????????????????????????????? | +----------------------------------------------------+ Best States ------------- Heat Dissipation 35 Energy Generation 12 Energy Capacity 265 Matter Stores 300 Matter Capacity 300 Sight Range 16 Terrain Scan Density 10 Armor Coverage 150 Evasion (%) 40 Recoil Reduction 2 Item Schematics ----------------- None Robot Schematics ------------------ None Fabricated ------------ Nothing Repaired ---------- Nothing Studied --------- None Alien Tech Used ----------------- None Achievements -------------- None Challenges ------------ None Game ------ Seed GammaHugeInterface Manual? 0 Play Time 00:15:22 Cumulative 546.5 hours Start 2025.12.14 @ 09:54:16 End 2025.12.14 @ 10:09:47 Sessions 1 Manual Loads 0 Difficulty Rogue Special Mode None Game No. 226 Rogue 226 Adventurer 0 Explorer 0 Win Type - Total 17 Types 15/0/1/1/0/0/0/0/0/0 Lore% 80 Gallery% 77 Achievement% 54 Wizard Run 0 Options --------- Layout 0 ASCII 0 Keyboard 0 Movement Numpad Keybinds 0 Fullscreen 1 Font 24/X11 Map View 76x50 Zoom Use 0% Tactical HUD 1 Map Filters NONE Filters NONE Steam 1 RUN: 414616da-6016-4cdd-94c8-1de96b2c68de